Cogmind - Beta 14 @@@ ROGUE MODE // 2024.12.16 @ 21:51:29 Player: Tereza Result: Destroyed by D-53 Grenadier with Mini Grenade Launcher Performance ------------- Evolutions (0) 0 Regions Visited (2) 400 Robots Destroyed (24) 120 Value Destroyed (548) 548 Prototype IDs (2) 40 Alien Tech Used (0) 0 Bonus (39) 39 TOTAL SCORE: 1147 Bonus ------- Follower Combat Kills 39 Cogmind --------- Core Integrity 0/250 Matter 298/300 Energy 89/100 System Corruption 0% Temperature Cool (9) Movement Rolling (115) Ox1 Location -10/Mines Parts ------- > --- POWER (1) -------- (None) > --- PROPULSION (2) --- Compact Wheel > --- UTILITY (2) ------ Large Storage Unit Sensor Array > --- WEAPON (2) ------- Particle Gun Light Assault Rifle > --- INVENTORY (15) --- Ion Engine Ion Engine Light Nuclear Core Compact Wheel Heat Sink Heat Sink Heat Sink Medium Storage Unit Structural Scanner Medium Laser Small Laser Grenade Launcher Datajack Datajack Peak State ------------ > --- POWER ------------ Light Ion Engine > --- PROPULSION ------- Light Treads Light Treads > --- UTILITY ---------- Medium Storage Unit Large Storage Unit > --- WEAPON ----------- Light Assault Rifle Light Cannon > --- INVENTORY -------- Ion Engine Compact Wheel Compact Wheel Heat Sink Structural Scanner Medium Laser Small Laser Light Assault Rifle Grenade Launcher Datajack [Rating: 8] Favorites ----------- Power Light Ion Engine Engine Light Ion Engine Propulsion Light Treads Treads Light Treads Wheel Compact Wheel Utility Large Storage Unit Device Sensor Array Storage Large Storage Unit Weapon Light Assault Rifle Energy Gun Particle Gun Ballistic Gun Light Assault Rifle Ballistic Cannon Light Cannon Build | -11 -10 -10 ------- Run | Yrd Mat Min Slots Evolved . | . . . Power . | . . . Propulsion . | . . . Utility . | . . . Weapon . | . . . Parts Attached 14 | 5 7 2 Power 1 | 1 . . Engine 1 | 1 . . Core . | . . . Reactor . | . . . Propulsion 3 | 2 1 . Treads 2 | 2 . . Leg . | . . . Wheel 1 | . 1 . Hover . | . . . Flight . | . . . Utility 4 | 1 2 1 Device 1 | . . 1 Storage 3 | 1 2 . Processor . | . . . Hackware . | . . . Protection . | . . . Artifact . | . . . Weapon 6 | 1 4 1 Energy Gun 2 | . 1 1 Energy Cannon . | . . . Ballistic Gun 3 | 1 2 . Ballistic Cannon 1 | . 1 . Launcher . | . . . Special Weapon . | . . . Impact Weapon . | . . . Slashing Weapon . | . . . Piercing Weapon . | . . . Special Melee Weapon . | . . . Unidentified Prototypes . | . . . Parts Lost 6 | . 5 1 Power 1 | . 1 . Propulsion 2 | . 2 . Utility . | . . . Weapon 3 | . 2 1 Highest Loss Streak 2 | . 2 1 To Critical Strikes 1 | . 1 . Average Slot Usage (%) 78 | . 80 69 Engine 9 | . 11 . Treads 21 | . 24 . Wheel 3 | . 1 14 Device 1 | . . 13 Storage 14 | . 14 14 Energy Gun 1 | . . 8 Ballistic Gun 16 | . 16 18 Ballistic Cannon 9 | . 10 . Peak Build Rating 8 | 5 8 7 Average Rating 6 | 4 6 6 On Entrance 3 | . 5 5 Naked Turns . | . . . Heaviest Build 27 | 10 27 25 Greatest Support 40 | 40 40 16 Greatest Overweight (x) 1 | . 1 1 Average Overweight (x) . | . . 1 Largest Inventory Capacity 15 | 8 15 15 Average Capacity 12 | 7 11 15 Most Carried 15 | 6 15 15 Average Carried 10 | 4 10 14 Final Capacity 15 | 8 15 15 Final Carried 15 | 5 15 14 Class Distribution -------------------- 100% | Mutant Dominant Class ---------------- Mutant | -10/Materials Mutant | -10/Mines Resources | -11 -10 -10 ----------- Run | Yrd Mat Min Matter Collected 712 | 232 452 28 Remotely . | . . . Salvage Created 653 | . 606 47 Parts 42 | . 41 1 Haulers Intercepted 1 | . 1 . Recyclers Shooed 1 | . 1 . Parts Field Recycled . | . . . Retrieved Matter . | . . . Parts Self-Destructed . | . . . Prevented . | . . . Kills | -11 -10 -10 ------- Run | Yrd Mat Min Combat Hostiles Destroyed 17 | . 16 1 Guns 13 | . 12 1 Cannons 4 | . 4 . Classes Destroyed 6 | . 6 . Hauler 1 | . 1 . Recycler 1 | . 1 . Operator 2 | . 2 . Watcher 3 | . 3 . Swarmer 6 | . 6 . Grunt 11 | . 10 1 Best Kill Streak 4 | . 4 1 Combat Bots Only 3 | . 3 1 Max Kills in Single Turn 2 | . 2 1 Gunslinging . | . . . Exploded . | . . . Melee . | . . . Uniques/NPCs Destroyed . | . . . Combat | -11 -10 -10 -------- Run | Yrd Mat Min Hostile Shots Fired 117 | . 110 7 Missed 31 | . 29 2 Damage Taken 1018 | . 930 88 Core 252 | . 218 34 Absorbed by Shields . | . . . Core Remaining (%) 100 | 100 . . Volleys Fired 88 | . 81 7 Largest 2 | . 2 2 Hottest 85 | . 75 85 Shots Fired 175 | . 162 13 Gun 117 | . 104 13 Cannon 58 | . 58 . Launcher . | . . . Special . | . . . Kinetic 166 | . 155 11 Thermal 9 | . 7 2 Explosive . | . . . Electromagnetic . | . . . Robot Hit Streak 10 | . 10 8 Robot Miss Streak 5 | . 5 4 Penetration Max . | . . . Secondary Targets 2 | . 2 . Max Gunslinging Chain 1 | . 1 . Shots Hit Robots 103 | . 97 6 Core Hits 42 | . 40 2 Critical Kills 1 | . 1 . Critical Parts Destroyed 1 | . 1 . Critical Strikes 7 | . 7 . Destroy 2 | . 2 . Blast 5 | . 5 . Melee Attacks . | . . . Impact . | . . . Slashing . | . . . Piercing . | . . . Sneak Attacks . | . . . Combat Hostiles . | . . . Follow-up Attacks . | . . . Damage Inflicted 1282 | . 1236 46 Guns 719 | . 673 46 Cannons 563 | . 563 . Explosions . | . . . Melee . | . . . Ramming . | . . . Kinetic 1211 | . 1165 46 Thermal 71 | . 71 . Explosive . | . . . Electromagnetic . | . . . Impact . | . . . Slashing . | . . . Piercing . | . . . Highest Corruption . | . . . Average Corruption . | . . . Corruption Purged . | . . . Corruption Blocked . | . . . Overload Shots . | . . . Overflow Damage . | . . . Projectiles . | . . . Explosions . | . . . Melee . | . . . Knockbacks 9 | . 9 . Impact . | . . . Kinetic 9 | . 9 . Secondary . | . . . Self-Inflicted Damage . | . . . Shots . | . . . Rammed . | . . . Targets Rammed . | . . . Kicked . | . . . Crushed . | . . . Highest Temperature 105 | . 105 34 Average Temperature 24 | . 25 10 Received Heat Transfer 423 | . 399 24 Siege Activations . | . . . Robots Corrupted . | . . . Combat Hostiles . | . . . Parts Fried . | . . . Impact Corruptions . | . . . Robots Melted . | . . . Combat Hostiles . | . . . Parts Melted . | . . . Heat Transferred 150 | . 150 . Parts Sabotaged . | . . . Parts Stolen . | . . . Parts Stripped . | . . . Power Chain Reactions . | . . . Alert | -11 -10 -10 ------- Run | Yrd Mat Min Peak Influence 220 | . 220 42 Initial 7 | . . 7 Average 87 | . 102 15 Maximum Alert Level 1 | . 1 . Low Security (%) 94 | 100 93 100 Level 1 5 | . 6 . Level 2 . | . . . Level 3 . | . . . Level 4 . | . . . Level 5 . | . . . High Security . | . . . Max Security . | . . . Squads Dispatched 3 | . 3 . Investigation 1 | . 1 . Extermination . | . . . Reinforcement 2 | . 2 . Assault . | . . . Garrison . | . . . Intercept . | . . . Searches Triggered . | . . . Construction Impeded . | . . . Haulers Reinforced . | . . . Active Scanning Responses . | . . . Cargo Convoy Interrupts . | . . . Stealth | -11 -10 -10 --------- Run | Yrd Mat Min Distress Signals . | . . . Communications Jammed . | . . . Distress Signals . | . . . Times Spotted 36 | . 31 5 Peak Tracking Total 6 | . 6 3 Tactical Retreats 1 | . 1 . Traps | -11 -10 -10 ------- Run | Yrd Mat Min Traps Triggered 2 | . 2 . Indirectly . | . . . Trap Hack Attempts . | . . . Triggered . | . . . Disarmed . | . . . Reprogrammed . | . . . Reused . | . . . Traps Extracted . | . . . Installed . | . . . Triggered . | . . . Machines | -11 -10 -10 ---------- Run | Yrd Mat Min Machines Disabled . | . . . Max in Single Turn . | . . . Machines Repaired . | . . . Machines Dismantled . | . . . Machines Sabotaged . | . . . Overloaded Fab Kills . | . . . Hacking | -11 -10 -10 --------- Run | Yrd Mat Min Machines Accessed 6 | . 6 . Terminals 6 | . 6 . Fabricators . | . . . Repair Stations . | . . . Recycling Units . | . . . Scanalyzers . | . . . Garrison Access . | . . . Total Hacks 17 | . 17 . Successful 6 | . 6 . Failed 10 | . 10 . Catastrophic 1 | . 1 . Database Lockouts 1 | . 1 . Manual 9 | . 9 . Terminals 17 | . 17 . Fabricators . | . . . Repair Stations . | . . . Recycling Units . | . . . Scanalyzers . | . . . Garrison Access . | . . . Terminal Hacks 6 | . 6 . Robot Analysis 3 | . 3 . Prototype ID Bank 1 | . 1 . Zone Layout 2 | . 2 . Fabricator Hacks . | . . . Repair Station Hacks . | . . . Recycling Unit Hacks . | . . . Scanalyzer . | . . . Garrison Access Hacks . | . . . Unauthorized Hacks . | . . . Terminals . | . . . Fabricators . | . . . Repair Stations . | . . . Recycling Units . | . . . Scanalyzers . | . . . Garrison Access . | . . . Data Cores Recovered . | . . . Used . | . . . Hacking Detections 3 | . 3 . Full Trace Events 1 | . 1 . Feedback Events . | . . . Feedback Blocked . | . . . Robot Schematics Acquired . | . . . Robots Built . | . . . Authchips . | . . . Time . | . . . Total Robot Build Rating . | . . . Part Schematics Acquired . | . . . Parts Built . | . . . Authchips . | . . . Time . | . . . Total Part Build Rating . | . . . Parts Repaired . | . . . Time . | . . . Parts Recycled . | . . . Recycled Matter . | . . . Retrieved Matter . | . . . Retrieved Components . | . . . Parts Scanalyzed . | . . . Part Schematics Acquired . | . . . Parts Damaged . | . . . Bothacking | -11 -10 -10 ------------ Run | Yrd Mat Min Used RIF Installer . | . . . Robots Hacked . | . . . Non-combat . | . . . Combat . | . . . Robot Hacks Applied . | . . . Relay Couplers Released . | . . . Fabnet Peak Effective % . | . . . Robots Rewired . | . . . Allies Hacked . | . . . Hacks Repelled . | . . . Allies | -11 -10 -10 -------- Run | Yrd Mat Min Total Allies 2 | . . 2 Largest Group 2 | . . 2 Highest-Rated Group 54 | . . 54 Highest-Rated Ally 31 | . . 31 Total Orders . | . . . Ally Attacks 5 | . . 5 Total Damage 69 | . . 69 Kills 1 | . . 1 Allies Corrupted . | . . . Allies Melted . | . . . Intel | -11 -10 -10 ------- Run | Yrd Mat Min Robot Analysis Total 3 | . 3 . Derelict Logs Recovered 2 | . . 2 Drone Launches . | . . . Drone Recoveries . | . . . Exploration | -11 -10 -10 ------------- Run | Yrd Mat Min Turns Passed 1540 | 70 1289 181 Spaces Moved 805 | 38 657 110 Core 3 | 3 . . Treads 593 | 35 558 . Legs . | . . . Wheels 209 | . 99 110 Hover . | . . . Flight . | . . . Fastest Speed 50 | 50 115 115 Average Speed 147 | 151 153 115 Slowest Speed 160 | 160 160 115 Overloaded Moves . | . . . Propulsion Burnouts . | . . . Robots Hopped . | . . . Cave-ins Triggered . | . . . Exploration Rate (%) 36 | 3 85 21 Regions Visited 2 Branch Regions 1 Pre-discovered Areas . | . . . Known Exits Taken . | . . . Unknown Exits Taken 2 | 1 1 . Scrap Searched . | . . . Spaces Dug . | . . . Terrain Destroyed . | . . . Melee . | . . . Projectile . | . . . AOE . | . . . Terrain Rammed . | . . . Walls Destroyed . | . . . Machines Disabled . | . . . Actions | -11 -10 -10 --------- Run | Yrd Mat Min Total 995 | 49 790 156 Wait 67 | . 31 36 Move 803 | 37 656 110 Hop . | . . . Pick Up 19 | 6 12 1 Fast Attach 8 | 5 3 . Attach 5 | . 3 2 Detach 2 | . 2 . Swap 1 | . 1 . Drop 2 | 1 1 . Fire 88 | . 81 7 Melee . | . . . Ram . | . . . Kick . | . . . Crush . | . . . Escape Stasis . | . . . Rewire . | . . . Trap . | . . . Miscellaneous . | . . . Route ------- -11/Scrapyard -10/Materials (discovered 6 exits: [*Mat x3] / [*Min x2] / [*Sub]) -10/Mines History --------- Turn | Location | Event 27 | -11/Scrapyard | Discovered new exit (range 15) 71 | -11/Scrapyard | Entered Materials 234 | -10/Materials | Central database locked down 304 | -10/Materials | Build established: Mutant 313 | -10/Materials | Discovered new exit (range 8) 368 | -10/Materials | Discovered new exit (range 12) 559 | -10/Materials | Discovered new exit (range 4) 1006 | -10/Materials | Discovered new exit (range 16) 1011 | -10/Materials | Discovered new exit (range 11) 1069 | -10/Materials | Core integrity fell below 50% 1111 | -10/Materials | Discovered new exit (range 5) 1213 | -10/Materials | Core integrity fell below 20% 1360 | -10/Materials | Entered Mines 1378 | -10/Mines | Met a Derelict bent on vengeance 1467 | -10/Mines | Assembled infested the area 1490 | -10/Mines | Learned location of 2 exits from Materials 1498 | -10/Mines | Learned location of 1 exit from Materials 1541 | -10/Mines | Destroyed by D-53 Grenadier with Mini Grenade Launcher Last Messages --------------- to know the way out of here, would you?" 01467_ ALERT: Infestation in the mines, dispatching Demolisher response squad. 01483_ K-01 Serf collects debris. 01490_ Acquired derelict log, extracted data. Data stored: Materials exits (x2). 01493_ T-07 Excavator is excavating. 01493_ U-05 Engineer lays Concrete. 01496_ U-05 Engineer builds a Wall. 01497_ T-07 Excavator is excavating. 01498_ Acquired derelict log, extracted data. Data stored: Materials exits (x1). 01500_ U-05 Engineer lays Concrete. 01502_ T-07 Excavator is excavating. 01503_ U-05 Engineer builds a Wall. 01507_ T-07 Excavator is excavating. 01524_ as-46917 destroyed. 01537_ WK-BJ4(g) destroyed. 01539_ PP-BN4(z) destroyed. 01540_ U-05 Engineer lays Concrete. Map ----- +----------------------------------------------------+ | ?????????????????????????????????????? | | ?????????????????????????????????????? | | ?????????????????????????????????????? | | ?????????????????????????????????????? | | ?????????????????????????????????????? | | ?????????????????????????????????????? | | ?######??????????????????????????????? | | ?# #??????????????????????????????? | | ?# #??????????????????????????????? | | ?# #??????????????????????????????? | | ?# #??????????????????????????????? | | ?# #??????????????????????????????? | | ?# ###########????????????????????? | | ?# ##%= #????####???????? | | ?# ## ########????????# #???????? | | ?### ### #??????????##### #???????? | | ???# #?#[#?????????## #???????? | | ???# #?#%#????????# #????????? | | ???# #?# #??###### ## #????????? | | ???# #?# #?## # ### ##????????? | | ???# #?# ### #???###?????????? | | ??## ### ## #???????????????? | | ?## ## ## * = #???????????????? | | ?# # ### !%]%* ####????????????? | | ?# ![ ##???????????? | | ?# ##### @ #???????????? | | ?# ####### #??????????? | | ?## ## u ## % ???????? | | ??##?# ########?# ! ??????? | | ?????# #????????## = % % ??????? | | ?????# #?????????## !da = !% ??????? | | ?????# #???????????###a !* ???????? | | ?????# #?????????????? %=!% #???????? | | ????## #?????????????? #????????? | | ???## ##?????????????? ?????????? | | ??# #??????????????? ##?????????? | | ?# #???????????????? ???????????? | | ?# #????????????????????????????? | | ?## #????????????????????????????? | | ??### ##????????????????????????????? | | ????###??????????????????????????????? | | ?????????????????????????????????????? | | ?????????????????????????????????????? | | ?????????????????????????????????????? | | ?????????????????????????????????????? | | ?????????????????????????????????????? | | ?????????????????????????????????????? | | ?????????????????????????????????????? | | ?????????????????????????????????????? | | ?????????????????????????????????????? | +----------------------------------------------------+ Best States ------------- Heat Dissipation 25 Energy Generation 10 Energy Capacity 125 Matter Stores 300 Matter Capacity 300 Sight Range 16 Robot Scan Range 14 Terrain Scan Density 10 Evasion (%) 40 Recoil Reduction 2 Item Schematics ----------------- None Robot Schematics ------------------ None Fabricated ------------ Nothing Alien Tech Used ----------------- None Achievements -------------- None Challenges ------------ None Game ------ Seed PulseRecyclingInterrupter Manual? 0 Play Time 00:08:48 Cumulative 142.3 hours Start 2024.12.16 @ 21:43:56 End 2024.12.16 @ 21:51:29 Sessions 1 Manual Loads 0 Difficulty Rogue Special Mode None Game No. 175 Rogue 175 Adventurer 0 Explorer 0 Win Type - Total 3 Types 3/0/0/0/0/0/0/0/0 Lore% 67 Gallery% 58 Achievement% 49 Wizard Run 0 Options --------- Layout 1 ASCII 0 Keyboard 1 Movement Numpad Keybinds 0 Fullscreen 1 Font 24/Smallcaps Map View 50x35 Zoom Use 0% Tactical HUD 1 Map Filters NONE Filters NONE Steam 1 RUN: c449c745-41f6-434a-b134-f9ccdd9edbde